fUST/lending_fUST_20241004
["ID","MTS","AMOUNT","RATE_DAILY","PERIOD"]
[339804792,1727991046454,-500.0,0.00013698,2]
[339804793,1727991046463,-607.7,0.00013698,2]
[339804794,1727991046473,-566.48,0.00013698,2]
[339804795,1727991046482,-820.02,0.00013698,2]
[339804796,1727991046491,-500.0,0.00013698,2]
[339804797,1727991046501,-500.0,0.00013698,2]
[339804798,1727991046511,-500.0,0.00013698,2]
[339804799,1727991046520,-500.0,0.00013698,2]
[339804800,1727991046531,-500.0,0.00013698,2]
[339804801,1727991046540,-500.0,0.00013698,2]
[339804802,1727991046552,-153.9134632,0.00013698,2]
[339804803,1727991046561,-500.0,0.00013698,2]
[339804804,1727991046571,-500.0,0.00013698,2]
[339804805,1727991046580,-500.67397721,0.00013698,2]
[339804806,1727991046592,-500.0,0.00013698,2]
[339804807,1727991046602,-500.0,0.00013698,2]
[339804808,1727991046611,-500.23550126,0.00013698,2]
[339804809,1727991046619,-500.0,0.00013698,2]
[339804810,1727991046629,-500.0,0.00013698,2]
[339804811,1727991046638,-500.0,0.00013698,2]
[339804812,1727991046647,-500.0,0.00013698,2]
[339804813,1727991046656,-500.0,0.00013698,2]
[339804814,1727991046664,-500.0,0.00013698,2]
[339804815,1727991046673,-500.0,0.00013698,2]
[339804816,1727991046683,-501.19703065,0.00013698,2]
[339804817,1727991046692,-500.0,0.00013698,2]
[339804818,1727991046701,-500.0,0.00013698,2]
[339804819,1727991046710,-515.82,0.00013698,2]
[339804820,1727991046719,-500.0,0.00013698,2]
[339804821,1727991046728,-500.0,0.00013698,2]
[339804822,1727991046738,-500.0,0.00013698,2]
[339804823,1727991046747,-506.06770112,0.00013698,2]
[339804824,1727991046757,-500.0,0.00013698,2]
[339804825,1727991046767,-500.0,0.00013698,2]
[339804826,1727991046777,-500.0,0.00013698,2]
[339804827,1727991046786,-500.0,0.00013698,2]
[339804828,1727991046795,-500.0,0.00013698,2]
[339804829,1727991046804,-500.0,0.00013698,2]
[339804830,1727991046814,-500.0,0.00013698,2]
[339804831,1727991046825,-500.0,0.00013698,2]
[339804832,1727991046835,-500.0,0.00013698,2]
[339804833,1727991046845,-500.55936233,0.00013698,2]
[339804834,1727991046854,-507.02851309,0.00013698,2]
[339804835,1727991046864,-500.0,0.00013698,2]
[339804836,1727991046873,-500.0,0.00013698,2]
[339804837,1727991046882,-383.02291366,0.00013698,2]
[339804838,1727991046891,-500.0,0.00013698,2]
[339804839,1727991046901,-623.72,0.00013698,2]
[339804840,1727991046910,-500.0,0.00013698,2]
[339804841,1727991046919,-500.0,0.00013698,2]
[339804842,1727991046928,-500.0,0.00013698,2]
[339804843,1727991046938,-500.0,0.00013698,2]
[339804844,1727991046950,-500.0,0.00013698,2]
[339804845,1727991046960,-500.0,0.00013698,2]
[339804846,1727991046970,-500.0,0.00013698,2]
[339804847,1727991046979,-500.0,0.00013698,2]
[339804848,1727991046988,-500.0,0.00013698,2]
[339804849,1727991046998,-500.0,0.00013698,2]
[339804850,1727991047007,-624.31,0.00013698,2]
[339804851,1727991047017,-500.0,0.00013698,2]
[339804852,1727991047028,-732.1,0.00013698,2]
[339804853,1727991047037,-500.0,0.00013698,2]
[339804854,1727991047046,-643.34,0.00013698,2]
[339804855,1727991047055,-500.0,0.00013698,2]
[339804856,1727991047064,-562.79,0.00013698,2]
[339804857,1727991047074,-500.0,0.00013698,2]
[339804858,1727991047083,-500.0,0.00013698,2]
[339804859,1727991047092,-500.0,0.00013698,2]
[339804860,1727991047101,-739.51,0.00013698,2]
[339804861,1727991047110,-500.0,0.00013698,2]
[339804862,1727991047120,-569.64,0.00013698,2]
[339804863,1727991047129,-599.78,0.00013698,2]
[339804864,1727991047139,-500.0,0.00013698,2]
[339804865,1727991047148,-500.82033814,0.00013698,2]
[339804866,1727991047158,-500.0,0.00013698,2]
[339804867,1727991047168,-500.36826614,0.00013698,2]
[339804868,1727991047178,-500.0,0.00013698,2]
[339804869,1727991047188,-567.76,0.00013698,2]
[339804870,1727991047198,-500.0,0.00013698,2]
[339804871,1727991047208,-500.0,0.00013698,2]
[339804872,1727991047218,-500.0,0.00013698,2]
[339804873,1727991047228,-500.0,0.00013698,2]
[339804874,1727991047238,-524.39,0.00013698,2]
[339804875,1727991047248,-500.0,0.00013698,2]
[339804876,1727991047257,-500.0,0.00013698,2]
[339804877,1727991047267,-1827.82,0.00013698,2]
[339804878,1727991047278,-500.0,0.00013698,2]
[339804879,1727991047291,-500.0,0.00013698,2]
[339804880,1727991047301,-500.0,0.00013698,2]
[339804881,1727991047310,-500.0,0.00013698,2]
[339804882,1727991047319,-500.0,0.00013698,2]
[339804883,1727991047329,-500.0,0.00013698,2]
[339804884,1727991047338,-500.0,0.00013698,2]
[339804885,1727991047347,-500.0,0.00013698,2]
[339804886,1727991047356,-500.0,0.00013698,2]
[339804887,1727991047366,-500.0,0.00013698,2]
[339804888,1727991047375,-500.0,0.00013698,2]
[339804889,1727991047385,-500.0,0.00013698,2]
[339804890,1727991047394,-500.0,0.00013698,2]
[339804891,1727991047403,-658.62,0.00013698,2]
[339804892,1727991047413,-729.47,0.00013698,2]
[339804893,1727991047422,-500.0,0.00013698,2]
[339804894,1727991047431,-500.0,0.00013698,2]
[339804895,1727991047443,-500.0,0.00013698,2]
[339804896,1727991047452,-500.0,0.00013698,2]
[339804897,1727991047462,-689.52,0.00013698,2]
[339804898,1727991047472,-500.0,0.00013698,2]
[339804899,1727991047483,-500.0,0.00013698,2]
[339804900,1727991047494,-500.0,0.00013698,2]
[339804901,1727991047503,-500.0,0.00013698,2]
[339804902,1727991047513,-500.0,0.00013698,2]
[339804903,1727991047522,-749.41,0.00013698,2]
[339804904,1727991047536,-500.0,0.00013698,2]
[339804905,1727991047545,-500.0,0.00013698,2]
[339804906,1727991047555,-500.0,0.00013698,2]
[339804907,1727991047564,-500.0,0.00013698,2]
[339804908,1727991047573,-500.0,0.00013698,2]
[339804909,1727991047583,-500.0,0.00013698,2]
[339804910,1727991047597,-500.0,0.00013698,2]
[339804911,1727991047608,-500.0,0.00013698,2]
[339804912,1727991047617,-500.0,0.00013698,2]
[339804913,1727991047626,-500.0,0.00013698,2]
[339804914,1727991047638,-627.67,0.00013698,2]
[339804915,1727991047647,-500.0,0.00013698,2]
[339804916,1727991047657,-500.0,0.00013698,2]
[339804917,1727991047667,-500.0,0.00013698,2]
[339804918,1727991047817,-500.0,0.00013698,2]
[339804919,1727991047826,-500.0,0.00013698,2]
[339804920,1727991047836,-500.0,0.00013698,2]
[339804921,1727991047845,-500.0,0.00013698,2]
[339804922,1727991047855,-500.0,0.00013698,2]
[339804923,1727991047864,-500.0,0.00013698,2]
[339804924,1727991047874,-645.54,0.00013698,2]
[339804925,1727991047883,-175.64301043,0.00013698,2]
[339804926,1727991047893,-500.0,0.00013698,2]
[339804927,1727991047903,-500.0,0.00013698,2]
[339804928,1727991047913,-500.0,0.00013698,2]
[339804929,1727991047922,-500.0,0.00013698,2]
[339804930,1727991047931,-629.65,0.00013698,2]
[339804931,1727991047941,-500.0,0.00013698,2]
[339804932,1727991047951,-500.0,0.00013698,2]
[339804933,1727991047960,-500.0,0.00013698,2]
[339804934,1727991047970,-500.0,0.00013698,2]
[339804935,1727991047979,-500.0,0.00013698,2]
[339804936,1727991047990,-500.0,0.00013698,2]
[339804937,1727991048000,-500.0,0.00013698,2]
[339804938,1727991048010,-500.0,0.00013698,2]
[339804939,1727991048020,-500.0,0.00013698,2]
[339804940,1727991048031,-500.0,0.00013698,2]
[339804941,1727991048040,-500.0,0.00013698,2]
[339804942,1727991048050,-500.0,0.00013698,2]
[339804943,1727991048061,-500.0,0.00013698,2]
[339804944,1727991048071,-500.0,0.00013698,2]
[339804945,1727991048081,-500.0,0.00013698,2]
[339804946,1727991048091,-384.54262376,0.00013698,2]
[339804947,1727991048100,-500.0,0.00013698,2]
[339804948,1727991048110,-500.0,0.00013698,2]
[339804949,1727991048120,-575.73,0.00013698,2]
[339804950,1727991048130,-572.38,0.00013698,2]
[339804951,1727991048139,-500.0,0.00013698,2]
[339804952,1727991048149,-500.0,0.00013698,2]
[339804953,1727991048160,-551.74,0.00013698,2]
[339804954,1727991048170,-500.0,0.00013698,2]
[339804955,1727991048179,-500.0,0.00013698,2]
[339804956,1727991048188,-500.0,0.00013698,2]
[339804957,1727991048198,-547.53,0.00013698,2]
[339804958,1727991048207,-500.0,0.00013698,2]
[339804959,1727991048217,-289.64704842,0.00013698,2]
[339804960,1727991048226,-500.0,0.00013698,2]
[339804961,1727991048236,-500.0,0.00013698,2]
[339804962,1727991048246,-1192.1,0.00013698,2]
[339804963,1727991048255,-500.0,0.00013698,2]
[339804964,1727991048265,-571.9,0.00013698,2]
[339804965,1727991048275,-665.7,0.00013698,2]
[339804966,1727991048285,-500.0,0.00013698,2]
[339804967,1727991048295,-786.97,0.00013698,2]
[339804968,1727991048305,-254.05118698,0.00013698,2]
[339804969,1727991048315,-500.0,0.00013698,2]
[339804970,1727991048325,-500.98266916,0.00013698,2]
[339804971,1727991048335,-500.0,0.00013698,2]
[339804972,1727991048345,-500.0,0.00013698,5]
[339804973,1727991048354,-500.0,0.00013698,2]
[339804974,1727991048364,-679.89,0.00013698,2]
[339804975,1727991048374,-500.0,0.00013698,2]
[339804976,1727991048383,-628.91,0.00013698,2]
[339804977,1727991048393,-596.92,0.00013698,2]
[339804978,1727991048402,-500.0,0.00013698,2]
[339804979,1727991048412,-1967.0,0.00013698,7]
[339804980,1727991048422,-716.32,0.00013698,2]
[339804981,1727991048432,-500.0,0.00013698,2]
[339804982,1727991048442,-500.0,0.00013698,2]
[339804983,1727991048451,-343.802978,0.00013698,2]
[339804984,1727991048461,-514.09377697,0.00013698,2]
[339804985,1727991048471,-684.13,0.00013698,2]
[339804986,1727991048480,-500.0,0.00013698,2]
[339804987,1727991048490,-500.0,0.00013698,2]
[339804988,1727991048500,-500.0,0.00013698,2]
[339804989,1727991048510,-500.0,0.00013698,2]
[339804990,1727991048519,-548.3,0.00013698,2]
[339804991,1727991048529,-551.25,0.00013698,2]
[339804992,1727991048538,-500.0,0.00013698,2]
[339804993,1727991048547,-500.34125057,0.00013698,2]
[339804994,1727991048556,-511.88,0.00013698,2]
[339804995,1727991048566,-500.0,0.00013698,2]
[339804996,1727991048575,-633.65,0.00013698,2]
[339804997,1727991048584,-554.07,0.00013698,2]
[339804998,1727991048594,-500.0,0.00013698,2]
[339804999,1727991048604,-500.0,0.00013698,2]
[339805000,1727991048613,-500.66341814,0.00013698,2]
[339805001,1727991048623,-500.0,0.00013698,2]
[339805002,1727991048632,-500.0,0.00013698,2]
[339805003,1727991048641,-500.0,0.00013698,2]
[339805004,1727991048651,-500.0,0.00013698,2]
[339805005,1727991048660,-500.0,0.00013698,2]
[339805006,1727991048669,-500.86,0.00013698,2]
[339805007,1727991048679,-500.0,0.00013698,2]
[339805008,1727991048687,-768.34,0.00013698,2]
[339805009,1727991048697,-490.43730308,0.00013698,2]
[339805010,1727991048706,-500.0,0.00013698,2]
[339805011,1727991048715,-500.0,0.00013698,2]
[339805012,1727991048725,-500.0,0.00013698,2]
[339805013,1727991048734,-893.96,0.00013698,2]
[339805014,1727991048743,-500.0,0.00013698,2]
[339805015,1727991048753,-500.4,0.00013698,2]
[339805016,1727991048763,-500.0,0.00013698,2]
[339805017,1727991048772,-21069.77,0.00013698,2]
[339805018,1727991048783,-640.79585807,0.00013698,2]
[339805019,1727991048793,-500.0,0.00013698,2]
[339805020,1727991048802,-500.0,0.00013698,2]
[339805021,1727991048812,-500.0,0.00013698,2]
[339805022,1727991048821,-500.0,0.00013698,2]
[339805023,1727991048830,-500.0,0.00013698,2]
[339805024,1727991048840,-501.97698082,0.00013698,2]
[339805025,1727991048849,-500.0,0.00013698,2]
[339805026,1727991048858,-733.13,0.00013698,2]
[339805027,1727991048868,-162.62698592,0.00013698,2]
[339805028,1727991048877,-500.0,0.00013698,2]
[339805029,1727991048887,-500.0,0.00013698,2]
[339805030,1727991048896,-602.6,0.00013698,2]
[339805031,1727991048905,-500.0,0.00013698,2]
[339805032,1727991048915,-2887.45,0.00013698,2]
[339805033,1727991048924,-500.0,0.00013698,2]
[339805034,1727991048934,-913.79,0.00013698,2]
[339805035,1727991048943,-500.0,0.00013698,2]
[339805036,1727991048952,-545.44,0.00013698,2]
[339805037,1727991048962,-500.0,0.00013698,2]
[339805038,1727991048971,-500.0,0.00013698,2]
[339805039,1727991048981,-500.0,0.00013698,2]
[339805040,1727991048991,-1704.73,0.00013698,2]
[339805041,1727991049002,-815.48,0.00013698,2]
[339805042,1727991049011,-500.0,0.00013698,2]
[339805043,1727991049020,-500.0,0.00013698,2]
[339805044,1727991049030,-431.97253557,0.00013698,2]
[339805045,1727991049040,-865.43,0.00013698,2]
[339805046,1727991049049,-500.0,0.00013698,2]
[339805047,1727991049059,-546.25,0.00013698,2]
[339805048,1727991049069,-500.0,0.00013698,2]
[339805049,1727991049079,-500.0,0.00013698,2]
[339805050,1727991049089,-500.0,0.00013698,2]
[339805051,1727991049098,-500.0,0.00013698,2]
[339805052,1727991049108,-507.71,0.00013698,2]
[339805053,1727991049118,-500.0,0.00013698,2]
[339805054,1727991049127,-500.0,0.00013698,2]
[339805055,1727991049136,-500.0,0.00013698,2]
[339805056,1727991049146,-695.12,0.00013698,2]
[339805057,1727991049155,-500.0,0.00013698,2]
[339805058,1727991049165,-500.0,0.00013698,2]
[339805059,1727991049174,-500.0,0.00013698,2]
[339805060,1727991049184,-500.0,0.00013698,2]
[339805061,1727991049193,-500.0,0.00013698,2]
[339805062,1727991049202,-602.71,0.00013698,2]
[339805063,1727991049211,-500.0,0.00013698,2]
[339805064,1727991049222,-500.0,0.00013698,2]
[339805065,1727991049233,-500.21915935,0.00013698,2]
[339805066,1727991049242,-500.0,0.00013698,2]
[339805067,1727991049252,-500.0,0.00013698,2]
[339805068,1727991049261,-500.0,0.00013698,2]
[339805069,1727991049271,-500.0,0.00013698,2]
[339805070,1727991049281,-566.069007,0.00013698,2]
[339805071,1727991049290,-500.0,0.00013698,2]
[339805072,1727991049299,-500.0,0.00013698,2]
[339805073,1727991049309,-500.0,0.00013698,2]
[339805074,1727991049319,-500.0,0.00013698,2]
[339805075,1727991049328,-574.99,0.00013698,2]
[339805076,1727991049338,-500.0,0.00013698,2]
[339805077,1727991049347,-500.0,0.00013698,2]
[339805078,1727991049358,-500.0,0.00013698,2]
[339805079,1727991049368,-500.0,0.00013698,2]
[339805080,1727991049377,-744.27,0.00013698,2]
[339805081,1727991049387,-901.4,0.00013698,2]
[339805082,1727991049396,-500.0,0.00013698,2]
[339805083,1727991049406,-634.02,0.00013698,2]
[339805084,1727991049415,-500.0,0.00013698,2]
[339805085,1727991049424,-500.0,0.00013698,2]
[339805086,1727991049434,-570.66494701,0.00013698,2]
[339805087,1727991049443,-500.0,0.00013698,2]
[339805088,1727991049452,-500.0,0.00013698,2]
[339805089,1727991049462,-500.0,0.00013698,2]
[339805090,1727991049471,-500.0,0.00013698,2]
[339805091,1727991049481,-500.0,0.00013698,2]
[339805092,1727991049490,-500.0,0.00013698,2]
[339805093,1727991049499,-500.0,0.00013698,2]
[339805094,1727991049508,-500.0,0.00013698,2]
[339805095,1727991049518,-500.0,0.00013698,2]
[339805096,1727991049529,-500.0,0.00013698,2]
[339805097,1727991049539,-500.0,0.00013698,2]
[339805098,1727991049548,-508.99,0.00013698,2]
[339805099,1727991049559,-500.0,0.00013698,2]
[339805100,1727991049569,-500.0,0.00013698,2]
[339805101,1727991049579,-726.11,0.00013698,2]
[339805102,1727991049590,-500.0,0.00013698,2]
[339805103,1727991049601,-647.8,0.00013698,2]
[339805104,1727991049610,-500.0,0.00013698,2]
[339805105,1727991049619,-500.0,0.00013698,2]
[339805106,1727991049627,-500.0,0.00013698,2]
[339805107,1727991049639,-500.0,0.00013698,2]
[339805108,1727991049650,-443.65388381,0.00013698,2]
[339805109,1727991049659,-709.44,0.00013698,2]
[339805110,1727991049670,-571.18,0.00013698,2]
[339805111,1727991049682,-500.0,0.00013698,2]
[339805112,1727991049692,-500.0,0.00013698,2]
[339805113,1727991049702,-500.0,0.00013698,2]
[339805114,1727991049713,-500.0,0.00013698,2]
[339805115,1727991049724,-500.0,0.00013698,2]
[339805116,1727991049735,-500.0,0.00013698,2]
[339805117,1727991049747,-500.0,0.00013698,2]
[339805118,1727991049758,-500.0,0.00013698,2]
[339805119,1727991049770,-500.0,0.00013698,2]
[339805120,1727991049780,-1102.68,0.00013698,2]
[339805121,1727991049790,-279.96200587,0.00013698,2]
[339805122,1727991049800,-500.0,0.00013698,2]
[339805123,1727991049812,-500.0,0.00013698,2]
[339805124,1727991049824,-475.08178642,0.00013698,2]
[339805125,1727991049834,-500.0,0.00013698,2]
[339805126,1727991049844,-500.0,0.00013698,2]
[339805127,1727991049855,-500.0,0.00013698,2]
[339805128,1727991049865,-500.0,0.00013698,2]
[339805129,1727991049874,-601.83,0.00013698,2]
[339805130,1727991049886,-1078.1,0.00013698,2]
[339805131,1727991049897,-315.3417883,0.00013698,2]
[339805132,1727991049908,-1051.98,0.00013698,2]
[339805133,1727991049918,-518.3,0.00013698,2]
[339805134,1727991049928,-500.0,0.00013698,2]
[339805135,1727991049939,-500.0,0.00013698,2]
[339805136,1727991049950,-537.0,0.00013698,2]
[339805137,1727991049961,-627.85,0.00013698,2]
[339805138,1727991049971,-500.0,0.00013698,2]
[339805139,1727991049981,-661.54,0.00013698,2]
[339805140,1727991049990,-500.0,0.00013698,2]
[339805141,1727991049999,-500.0,0.00013698,2]
[339805142,1727991050009,-500.0,0.00013698,2]
[339805143,1727991050020,-1858.51,0.00013698,2]
[339805144,1727991050031,-500.0,0.00013698,2]
[339805145,1727991050041,-500.0,0.00013698,2]
[339805146,1727991050050,-500.0,0.00013698,2]
[339805147,1727991050060,-500.0,0.00013698,2]
[339805148,1727991050070,-500.0,0.00013698,2]
[339805149,1727991050079,-662.46,0.00013698,2]
[339805150,1727991050088,-500.0,0.00013698,2]
[339805151,1727991050097,-500.0,0.00013698,2]
[339805152,1727991050106,-500.0,0.00013698,2]
[339805153,1727991050117,-596.75,0.00013698,2]
[339805154,1727991050127,-500.0,0.00013698,2]
[339805155,1727991050138,-500.0,0.00013698,2]
[339805156,1727991050148,-500.0,0.00013698,2]
[339805157,1727991050158,-500.0,0.00013698,2]
[339805158,1727991050168,-500.0,0.00013698,2]
[339805159,1727991050178,-500.0,0.00013698,2]
[339805160,1727991050187,-501.35862957,0.00013698,2]
[339805161,1727991050196,-500.0,0.00013698,2]
[339805162,1727991050206,-182.49203148,0.00013698,2]
[339805163,1727991050215,-500.0,0.00013698,2]
[339805164,1727991050224,-500.0,0.00013698,2]
[339805165,1727991050233,-733.09,0.00013698,2]
[339805166,1727991050242,-781.47,0.00013698,2]
[339805167,1727991050252,-500.0,0.00013698,2]
[339805168,1727991050262,-500.0,0.00013698,2]
[339805169,1727991050273,-500.0,0.00013698,2]
[339805170,1727991050283,-500.0,0.00013698,2]
[339805171,1727991050293,-500.0,0.00013698,2]
[339805172,1727991050305,-500.0,0.00013698,2]
[339805173,1727991050315,-500.0,0.00013698,2]
[339805174,1727991050326,-500.0,0.00013698,2]
[339805175,1727991050337,-500.0,0.00013698,2]
[339805176,1727991050349,-739.86,0.00013698,2]
[339805177,1727991050360,-500.0,0.00013698,2]
[339805178,1727991050371,-500.0,0.00013698,2]
[339805179,1727991050381,-1099.9,0.00013698,2]
[339805180,1727991050390,-224.76357468,0.00013698,2]
[339805181,1727991050400,-500.0,0.00013698,2]
[339805182,1727991050409,-500.0,0.00013698,2]
[339805183,1727991050418,-737.55,0.00013698,2]
[339805184,1727991050428,-1131.53,0.00013698,2]
[339805185,1727991050438,-500.0,0.00013698,2]
[339805186,1727991050447,-500.0,0.00013698,2]
[339805187,1727991050456,-500.0,0.00013698,2]
[339805188,1727991050466,-500.0,0.00013698,2]
[339805189,1727991050475,-578.41,0.00013698,2]
[339805190,1727991050484,-500.0,0.00013698,2]
[339805191,1727991050493,-500.0,0.00013698,2]
[339805192,1727991050503,-500.0,0.00013698,2]
[339805193,1727991050513,-884.53,0.00013698,2]
[339805194,1727991050525,-500.0,0.00013698,2]
[339805195,1727991050542,-500.0,0.00013698,2]
[339805196,1727991050553,-500.0,0.00013698,2]
[339805197,1727991050563,-500.0,0.00013698,2]
[339805198,1727991050573,-563.57,0.00013698,2]
[339805199,1727991050583,-500.0,0.00013698,2]
[339805200,1727991050596,-687.45,0.00013698,2]
[339805201,1727991050608,-500.0,0.00013698,2]
[339805202,1727991050620,-500.0,0.00013698,2]
[339805203,1727991050630,-671.14,0.00013698,2]
[339805204,1727991050642,-588.96,0.00013698,2]
[339805205,1727991050785,-585.71,0.00013698,2]
[339805206,1727991050795,-537.02,0.00013698,2]
[339805207,1727991050803,-500.0,0.00013698,2]
[339805208,1727991050813,-500.0,0.00013698,2]
[339805209,1727991050822,-500.0,0.00013698,2]
[339805210,1727991050831,-166.666666,0.00013699,2]
[339805211,1727991050840,-5373.025798,0.00013699,2]
[339805212,1727991050849,-5079.1104222,0.00013699,2]
[339805213,1727991050858,-778.490179,0.00013699,2]
[339805214,1727991050868,-1245.78,0.000137,2]
[339805215,1727991050878,-150.112233,0.000137,2]
[339805216,1727991050887,-150.112233,0.000137,2]
[339805217,1727991050896,-150.112233,0.000137,2]
[339805218,1727991050906,-150.112233,0.000137,2]
[339805219,1727991050917,-150.112233,0.000137,2]
[339805220,1727991050927,-306.0,0.000137,2]
[339805221,1727991050937,-150.0,0.00013799,2]
[339805222,1727991050947,-150.112233,0.000138,2]
[339805223,1727991050956,-150.112233,0.000138,2]
[339805224,1727991050966,-150.112233,0.000138,2]
[339805225,1727991050975,-150.112233,0.000138,2]
[339805226,1727991050985,-6361.47951315,0.00013832,2]
[339805227,1727991050995,-500.0,0.00013832,2]
[339805228,1727991051004,-500.0,0.00013832,2]
[339805229,1727991051013,-500.0,0.00013832,2]
[339805230,1727991051023,-500.0,0.00013832,2]
[339805231,1727991051033,-500.0,0.00013832,2]
[339805232,1727991051043,-629.88612562,0.00013832,2]
[339805233,1727991051053,-183.148358,0.00013876,2]
[339805234,1727991051063,-7195.04478571,0.00013876,2]
[339805235,1727991051073,-150.112233,0.000139,2]
[339805236,1727991051082,-150.112233,0.000139,2]
[339805237,1727991051091,-150.112233,0.000139,2]
[339805238,1727991051101,-150.112233,0.000139,2]
[339805239,1727991051110,-150.112233,0.000139,2]
[339805240,1727991051120,-150.112233,0.000139,2]
[339805241,1727991051129,-150.0,0.000139,2]
[339805242,1727991051139,-150.112233,0.000139,2]
[339805243,1727991051149,-190.828887,0.000139,2]
[339805244,1727991051159,-397.0,0.0001391,2]
[339805245,1727991051169,-5844.87792933,0.00013951,2]
[339805246,1727991051179,-1053.02140205,0.00013951,2]
[339805247,1727991051188,-5844.87792933,0.00013952,2]
[339805248,1727991051198,-1053.02140205,0.00013952,2]
[339805249,1727991051207,-5844.87792933,0.00013961,2]
[339805250,1727991051216,-1053.02140205,0.00013961,2]
[339805251,1727991051225,-35069.267576,0.00013962,2]
[339805252,1727991051234,-6318.1284123,0.00013962,2]
[339805253,1727991051244,-150.0,0.0001397,2]
[339805254,1727991051253,-1000.0,0.0001397,2]
[339805255,1727991051262,-150.0,0.00013971,2]
[339805256,1727991051272,-247.39182847,0.00013971,2]
[339805257,1727991051282,-2787.3887143,0.00013971,2]
[339805258,1727991051291,-676.04,0.00013971,2]
[339805259,1727991051300,-500.0,0.00013971,2]
[339805260,1727991051309,-963.23,0.00013971,2]
[339805261,1727991051319,-500.0,0.00013971,2]
[339805262,1727991051327,-500.0,0.00013971,2]
[339805263,1727991051336,-500.0,0.00013971,2]
[339805264,1727991051346,-500.0,0.00013971,2]
[339805265,1727991051355,-500.0,0.00013971,2]
[339805266,1727991051364,-569.39,0.00013971,2]
[339805267,1727991051373,-500.0,0.00013971,2]
[339805268,1727991051383,-599.82,0.00013971,2]
[339805269,1727991051391,-967.2,0.00013971,2]
[339805270,1727991051400,-500.0,0.00013971,2]
[339805271,1727991051409,-604.14,0.00013971,2]
[339805272,1727991051418,-500.0,0.00013971,2]
[339805273,1727991051427,-569.87,0.00013971,2]
[339805274,1727991051436,-500.0,0.00013971,2]
[339805275,1727991051445,-670.72,0.00013971,2]
[339805276,1727991051454,-500.0,0.00013971,2]
[339805277,1727991051463,-500.0,0.00013971,2]
[339805278,1727991051472,-703.99,0.00013971,2]
[339805279,1727991051481,-1075.05,0.00013971,2]
[339805280,1727991051490,-662.26,0.00013971,2]
[339805281,1727991051499,-589.99,0.00013971,2]
[339805282,1727991051509,-521.72,0.00013971,2]
[339805283,1727991051519,-500.0,0.00013971,2]
[339805284,1727991051530,-659.25,0.00013971,2]
[339805285,1727991051539,-500.0,0.00013971,2]
[339805286,1727991051548,-500.0,0.00013971,2]
[339805287,1727991051557,-654.72,0.00013971,2]
[339805288,1727991051566,-500.0,0.00013971,2]
[339805289,1727991051575,-500.0,0.00013971,2]
[339805290,1727991051585,-1099.79,0.00013971,2]
[339805291,1727991051599,-927.05,0.00013971,2]